Cogmind - Beta 15 @@@ ROGUE MODE // 2025.05.29 @ 01:06:32 Player: Darcyisverycute Result: Destroyed 0b10! Performance ------------- Evolutions (9) 4500 Regions Visited (27) 5400 Robots Destroyed (308) 1540 Value Destroyed (14057) 14057 Prototype IDs (384) 7680 Alien Tech Used (13) 2600 Bonus (57997) 57997 TOTAL SCORE: 93774 Bonus ------- Triggered High Security 500 Triggered Max Security 3000 High Alert Combat Kills 3750 Follower Combat Kills 2207 Network Hubs Disabled 400 MAIN.C Attacked Warlord 500 Warlord Defense Kills 334 Met R17 at Cetus 500 Used Core Reset Matrix 3000 Met R17 at Research 2000 Scanned by Researcher 500 Pursued by Intercept 1000 Met Sigix 2000 Integrated Exoskeleton 5000 Escaped with Sigix 10000 Destroyed MAIN.C Guards 500 Met MAIN.C 5000 Destroyed MAIN.C Shell 5000 Destroyed MAIN.C 10000 Met Architect 300 Destroyed A8 300 Win 3000 Friendly Fire -794 Cogmind --------- Core Integrity 35/1600 Matter 220/300 Energy 338/340 System Corruption 0% +Membrane Temperature Cool (0) Movement Walking (30) Location Tau Ceti IV Orbit Parts ------- > --- POWER (1) -------- Zero-point Reactor > --- PROPULSION (3) --- Sigix Exoskeleton > --- UTILITY (5) ------ Medium Storage Unit Experimental Targeting Computer Experimental Core Analyzer Advanced Reaction Control System > --- WEAPON (4) ------- Sigix Sheargun Sigix Sheargun Sigix Sheargun Sigix Sheargun > --- INVENTORY (10) --- Experimental Cooling System Experimental Weapon Cycler Advanced Phase Shifter Advanced Shield Generator Sigix Sheargun Sigix Containment Pod Sigix Containment Pod Peak State ------------ > --- POWER ------------ Zero-point Reactor > --- PROPULSION ------- Sigix Exoskeleton > --- UTILITY ---------- Experimental Cooling System Medium Storage Unit Experimental Targeting Computer Experimental Core Analyzer Experimental Weapon Cycler > --- WEAPON ----------- Sigix Sheargun Sigix Sheargun Sigix Sheargun Sigix Sheargun > --- INVENTORY -------- Advanced Reaction Control System Advanced Phase Shifter Advanced Shield Generator Transdimensional Reconstructor High-powered Transdimensional Reconstructor Sigix Sheargun Sigix Containment Pod Sigix Containment Pod [Rating: 261] Favorites ----------- Power Light Nuclear Core Engine Ion Engine Power Core Light Nuclear Core Reactor Light Antimatter Reactor Propulsion Light Treads Treads Light Treads Leg Improved VSS Leg Wheel Centrium Wheel Hover Unit Improved Gyrokinetic Inverter Flight Unit Xenon Bombardment Thruster Utility High-capacity Storage Unit Device Improved Terrain Scanner Storage High-capacity Storage Unit Processor Advanced Targeting Computer Hackware Improved Hacking Suite Protection Medium Armor Plating Artifact Microwarp Drive Weapon Sigix Sheargun Energy Gun Sigix Sheargun Energy Cannon Cooled Particle Cannon Ballistic Gun Autogun Ballistic Cannon Mass Driver Launcher Gamma Bomb Array Special Weapon Improved Plasma Cutter Impact Weapon Maul Slashing Weapon Vibroblade Piercing Weapon Enhanced Force Lance Build | -11 -10 -10 -10 -9 -8 -7 -7 -7 -5 -5 -5 -5 -5 -5 -5 -4 -4 -4 -4 -3 -3 -3 -3 -2 -1 -1 -1 ------- Run | Yrd Mat Min Exi Min Mat Fac Sto Rec Fac Was Fac Ext Cet Arc Hub Fac Upp Upp War Pro Res Qua Sec Res Acc Com Ac0 Slots Evolved 18 | . . . . . 4 2 . . 4 . . . . . . 2 . . . . 2 . . 2 2 . . Power 1 | . . . . . . . . . 1 . . . . . . . . . . . . . . . . . . Propulsion 5 | . . . . . 2 . . . 1 . . . . . . 1 . . . . 1 . . . . . . Utility 9 | . . . . . 1 2 . . 2 . . . . . . 1 . . . . 1 . . . 2 . . Weapon 3 | . . . . . 1 . . . . . . . . . . . . . . . . . . 2 . . . Parts Attached 388 | 7 10 2 4 1 23 46 . 8 25 6 7 28 7 6 9 27 3 1 32 15 54 13 11 12 6 25 . Power 36 | 1 1 . 1 . 1 4 . . 2 1 2 1 1 2 . 2 . . 6 2 6 . 2 . . 1 . Engine 8 | 1 1 . . . 1 2 . . . . . . . . . . . . . 1 2 . . . . . . Core 11 | . . . 1 . . 2 . . 2 . 2 1 . . . 1 . . 1 1 . . . . . . . Reactor 17 | . . . . . . . . . . 1 . . 1 2 . 1 . . 5 . 4 . 2 . . 1 . Propulsion 98 | 2 . . 1 . 10 17 . . 13 1 1 12 2 1 1 5 . . 8 3 19 2 . . . . . Treads 30 | 2 . . 1 . 9 2 . . . 1 . 6 2 1 1 1 . . 4 . . . . . . . . Leg 36 | . . . . . . 14 . . 11 . 1 4 . . . . . . 4 1 1 . . . . . . Wheel 6 | . . . . . . 1 . . 1 . . 1 . . . 2 . . . . . 1 . . . . . Hover 20 | . . . . . 1 . . . 1 . . 1 . . . 2 . . . 1 14 . . . . . . Flight 6 | . . . . . . . . . . . . . . . . . . . . 1 4 1 . . . . . Utility 175 | 2 7 . . . 6 15 . 8 8 3 4 7 1 1 4 16 3 1 10 7 19 9 8 10 4 22 . Device 92 | 2 2 . . . 1 6 . 8 2 2 1 3 . 1 . 10 2 . 6 3 10 6 3 7 3 14 . Storage 10 | . 3 . . . . 1 . . . . 1 . . . . 1 . . . . 2 1 . . . 1 . Processor 38 | . . . . . . 3 . . 4 1 . 1 . . . 4 1 . 1 4 5 1 3 3 1 6 . Hackware 12 | . . . . . 2 2 . . 1 . 1 . . . 2 1 . . . . 2 . . . . 1 . Protection 22 | . 2 . . . 3 3 . . 1 . 1 3 1 . 2 . . 1 3 . . 1 1 . . . . Artifact 1 | . . . . . . . . . . . . . . . . . . . . . . . 1 . . . . Weapon 79 | 2 2 2 2 1 6 10 . . 2 1 . 8 3 2 4 4 . . 8 3 10 2 1 2 2 2 . Energy Gun 29 | 1 . . . . 4 6 . . . . . 1 1 2 . 2 . . 3 1 2 1 . 2 1 2 . Energy Cannon 12 | . . . . . . 2 . . . . . 2 . . . 1 . . 3 . 2 1 . . 1 . . Ballistic Gun 15 | 1 . 2 1 1 1 . . . . . . 2 2 . 2 1 . . . 1 1 . . . . . . Ballistic Cannon 2 | . . . . . . . . . . . . 2 . . . . . . . . . . . . . . . Launcher 5 | . . . . . . 2 . . 1 . . . . . 1 . . . . . 1 . . . . . . Special Weapon 1 | . . . . . . . . . . . . . . . 1 . . . . . . . . . . . . Impact Weapon 5 | . 2 . . . 1 . . . . . . 1 . . . . . . . 1 . . . . . . . Slashing Weapon 9 | . . . 1 . . . . . 1 . . . . . . . . . 2 . 4 . 1 . . . . Piercing Weapon 1 | . . . . . . . . . . 1 . . . . . . . . . . . . . . . . . Special Melee Weapon . | . . . . . . . . . . . . . . . . . . . . . . . . . . . . Unidentified Prototypes 37 | . . . . . 4 1 . . . . . . 4 . 1 3 . . 1 . 12 4 5 2 . . . Corrupted Parts 5 | . . . . . . 5 . . . . . . . . . . . . . . . . . . . . . System Corruption 16 | . . . . . . 16 . . . . . . . . . . . . . . . . . . . . . Parts Lost 103 | . 3 . . . . 16 . 1 9 1 2 11 . . 6 5 . . 30 4 2 1 9 . . 3 . Power 18 | . 1 . . . . 2 . . 1 . 1 1 . . 2 2 . . 5 . 1 . 2 . . . . Propulsion 30 | . . . . . . 6 . . 4 . . 5 . . . 1 . . 6 2 1 1 4 . . . . Utility 33 | . 1 . . . . 4 . 1 1 . 1 1 . . 4 1 . . 13 1 . . 2 . . 3 . Weapon 22 | . 1 . . . . 4 . . 3 1 . 4 . . . 1 . . 6 1 . . 1 . . . . Highest Loss Streak 13 | . 1 . . . . 7 . 1 4 1 2 7 . . 3 2 . . 13 4 1 1 9 . . 1 . To Critical Strikes 1 | . . . . . . . . . . . . . . . . . . . 1 . . . . . . . . Average Backups 15 | 2 11 19 20 23 24 17 19 19 19 19 16 18 19 18 17 18 20 20 18 3 7 7 4 5 5 5 5 Power . | . . 1 1 1 . . 3 3 1 . . 1 2 1 1 . 1 1 . . . . . . . . . Propulsion 1 | . . 1 1 2 3 . . . . 3 3 4 5 3 2 2 . . . . . . . . . . . Utility 9 | 1 6 11 12 15 14 10 11 12 14 13 12 11 7 8 8 10 14 14 11 2 4 5 1 2 2 2 3 Weapon 3 | . 3 6 5 5 6 6 5 4 3 2 . 1 4 4 4 4 4 4 4 1 2 . 1 1 1 1 1 Tool/Special . | . . . . . . . . . . . . . . . . . . . . . . . . . . . . Unused Backups 71 | . 4 . 3 . 11 2 . 1 3 2 2 1 4 4 2 7 2 . 8 . 3 5 . 1 1 5 . Power 10 | . . . . . 1 . . . 1 . . 1 . 2 2 . . . 2 . 1 . . . . . . Propulsion 9 | . . . . . . 1 . . . . . . 1 2 . 3 . . 2 . . . . . . . . Utility 37 | . 1 . 1 . 6 1 . 1 2 2 1 . 1 . . 3 2 . 3 . 2 4 . 1 1 5 . Weapon 14 | . 3 . 2 . 4 . . . . . 1 . 2 . . . . . 1 . . 1 . . . . . Tool/Special 1 | . . . . . . . . . . . . . . . . 1 . . . . . . . . . . . Average Slot Usage (%) 89 | . 98 100 100 100 99 95 100 95 95 92 92 84 90 88 86 85 89 89 77 30 85 94 73 79 83 83 83 Engine 2 | . 13 14 3 . 1 4 . . 4 . . . . . . . . . . . 1 . . . . . . Core 4 | . . . 10 14 7 2 7 7 6 8 6 8 6 . . 5 5 5 3 4 . . . . . . . Reactor 2 | . . . . . . . . . . 1 . . 3 10 10 1 5 5 4 . 6 9 8 9 7 7 7 Treads 11 | . 28 28 28 28 35 3 15 15 6 . . 8 16 17 17 15 10 10 8 3 . . . . . . . Leg 7 | . . . . . . 24 15 15 16 28 29 16 1 . . . . . 2 . . . 7 9 7 7 7 Wheel 1 | . . . . . . . . . 3 . . 2 1 . . 3 10 10 7 . . . . . . . . Hover 1 | . . . . . . . . . . . . . . . . . . . . 1 21 31 6 . . . . Device 10 | . 11 . . . . 13 15 10 10 6 12 7 20 17 17 13 10 10 12 1 12 18 7 4 14 14 14 Storage 7 | . 11 14 14 14 9 7 7 7 5 5 5 5 5 5 5 5 5 5 4 . 3 4 9 9 7 7 7 Processor 10 | . . . . . . 8 15 15 21 21 12 7 5 5 5 6 14 15 13 10 18 9 12 12 15 14 15 Hackware 3 | . . . . . 8 4 . . . 5 5 7 5 5 6 9 10 10 3 . 2 4 1 . . . . Protection 2 | . 4 14 14 14 9 2 . . . . 1 1 2 5 2 5 . . 1 . . . . . . . . Energy Gun 8 | . 11 . . . 8 10 7 7 2 . . . 1 14 11 5 5 5 3 . . . 14 35 27 29 30 Energy Cannon 3 | . . . . . . 6 15 15 9 6 4 2 3 . . . 5 5 6 1 1 4 . . 1 . . Ballistic Gun 5 | . 7 26 25 28 17 . . . . . . 4 6 2 3 9 5 5 2 . . . . . . . . Peak Build Rating 261 | 9 13 13 22 20 35 55 45 45 82 85 94 88 128 130 127 138 132 130 136 74 150 161 225 246 258 261 258 Average Rating 95 | 5 10 13 17 20 32 47 44 42 57 78 85 69 112 127 122 128 130 129 115 40 118 147 188 241 256 251 257 On Entrance 96 | . 9 13 13 22 20 35 44 45 43 82 83 81 82 128 126 116 131 130 130 59 47 143 155 225 241 247 256 Naked Turns . | . . . . . . . . . . . . . . . . . . . . . . . . . . . . Heaviest Build 115 | 9 96 58 98 98 105 79 69 69 73 79 80 102 115 111 108 83 79 78 113 29 60 66 51 65 73 66 59 Greatest Support 215 | 40 40 40 40 40 80 80 40 40 88 75 76 96 190 190 188 215 160 160 180 60 83 82 71 60 60 60 60 Greatest Overweight (x) 6 | . 2 1 2 2 5 3 1 1 6 3 2 5 4 . . 4 . . 3 2 3 1 1 1 1 1 . Average Overweight (x) . | . . 1 1 2 1 . 1 1 3 . . . . . . . . . . . . . . . . . . Largest Inventory Capacity 25 | 5 25 20 25 25 25 25 20 20 20 20 20 20 20 20 20 20 20 20 20 5 10 10 10 10 10 10 10 Average Capacity 17 | 5 16 20 21 25 25 20 20 20 20 20 20 20 20 20 20 20 20 20 19 5 9 10 9 10 10 10 10 Most Carried 25 | 4 20 19 23 23 25 25 20 20 20 20 20 20 20 20 20 20 20 20 20 5 10 10 10 10 10 10 9 Average Carried 16 | 2 11 19 20 23 24 18 19 19 19 19 19 19 19 19 18 18 19 19 18 4 8 9 9 9 9 9 9 Final Capacity 25 | 5 20 20 25 25 25 20 20 20 20 20 20 20 20 20 20 20 20 20 5 5 10 10 10 10 10 10 10 Final Carried 25 | 3 19 19 23 23 25 19 20 19 20 20 20 20 20 20 18 20 20 20 5 5 10 10 9 10 10 9 9 Class Distribution -------------------- 25% | Mutant 17% | Scavenger-Tank 14% | Scavenger-Skirmisher 14% | Alien-Sigix 7% | Commander-Skirmisher 3% | Scavenger-Mutant 3% | Hacker-Mutant Dominant Class ---------------- Mutant | -10/Materials Mutant | -10/Mines Mutant | -10/Exiles Commander-Mutant | -9/Mines Scavenger-Tank | -8/Materials Mutant | -7/Factory Scavenger-Skirmisher | -7/Storage Commander-Skirmisher | -7/Recycling Commander-Skirmisher | -5/Factory Mutant | -5/Waste Mutant | -5/Factory Hacker-Mutant | -5/Extension Scavenger-Tank | -5/Cetus Scavenger-Tank | -5/Archives Scavenger-Tank | -5/Hub_04(d) Scavenger-Tank | -4/Factory Scavenger-Skirmisher | -4/Upper Caves Scavenger-Skirmisher | -4/Upper Caves Scavenger-Skirmisher | -4/Warlord Mutant | -3/Proximity Caves Mutant | -3/Research Scavenger-Ninja | -3/Quarantine Alien-Sigix | -3/Section 7 Alien-Sigix | -2/Research Alien-Sigix | -1/Access Alien-Sigix | -1/Command Alien-Sigix | -1/Access_0 Resources | -11 -10 -10 -10 -9 -8 -7 -7 -7 -5 -5 -5 -5 -5 -5 -5 -4 -4 -4 -4 -3 -3 -3 -3 -2 -1 -1 -1 ----------- Run | Yrd Mat Min Exi Min Mat Fac Sto Rec Fac Was Fac Ext Cet Arc Hub Fac Upp Upp War Pro Res Qua Sec Res Acc Com Ac0 Matter Collected 10286 | 286 400 29 198 24 894 1136 8 282 325 280 107 802 229 120 297 879 218 175 560 294 1130 633 290 62 228 400 . Remotely 24 | . . . . . . . . . . . . . . . . . . . . 24 . . . . . . . Salvage Created 21406 | 140 691 . 360 25 1314 2793 . 352 1203 1611 440 682 198 271 1043 1710 75 170 1491 236 469 241 598 46 581 4576 90 Parts 852 | 12 30 . 20 4 79 122 . 10 39 26 13 21 5 18 44 64 4 4 44 17 9 14 27 4 21 188 13 Haulers Intercepted 11 | . 1 . . . 3 3 . . . . . . . . . 2 . . . . 2 . . . . . . Recyclers Shooed 6 | . . . . . 1 1 . . 1 . . . . . . 2 . . . . 1 . . . . . . Parts Field Recycled . | . . . . . . . . . . . . . . . . . . . . . . . . . . . . Retrieved Matter . | . . . . . . . . . . . . . . . . . . . . . . . . . . . . Parts Self-Destructed 28 | . . . . . . . . . . . . . . . . . 4 12 . 12 . . . . . . . Prevented 3 | . . . . . . . . . . . . . . . . . . 2 . 1 . . . . . . . Kills | -11 -10 -10 -10 -9 -8 -7 -7 -7 -5 -5 -5 -5 -5 -5 -5 -4 -4 -4 -4 -3 -3 -3 -3 -2 -1 -1 -1 ------- Run | Yrd Mat Min Exi Min Mat Fac Sto Rec Fac Was Fac Ext Cet Arc Hub Fac Upp Upp War Pro Res Qua Sec Res Acc Com Ac0 Combat Hostiles Destroyed 199 | . 17 . . 2 20 41 . 1 12 6 5 10 3 . 12 10 1 1 20 5 . 3 6 . 7 16 1 Melee 24 | . 2 . . . . 5 . . . . 4 4 . . 1 . . . 4 1 . 3 . . . . . Guns 100 | . 12 . . 2 20 18 . . . . . . . . 6 7 1 . 2 2 . . 6 . 7 16 1 Cannons 34 | . . . . . . 5 . 1 4 6 . 4 . . . . . 1 11 2 . . . . . . . AOE 20 | . . . . . . 8 . . 4 . 1 . . . 4 2 . . 1 . . . . . . . . Classes Destroyed 24 | 2 4 . . . 5 5 . . . 1 . . . . 1 . . . 2 . . . 3 . 1 . . Worker 22 | . . . . . . 4 . . 1 . . 2 . . 6 4 . . . . 2 . . 2 . 1 . Builder 11 | . . . . . 2 4 . . 1 . . . . . . 2 . . . . 2 . . . . . . Tunneler 8 | 3 . . . . 1 2 . . . . . . . . 1 . . . . . 1 . . . . . . Hauler 11 | . 1 . . . 3 3 . . . . . . . . . 2 . . . . 2 . . . . . . Recycler 21 | 1 . . . . 3 2 . 3 2 . 1 1 . . 1 4 . . . . 1 1 . . . 1 . Mechanic 3 | . . . . . . 2 . . 1 . . . . . . . . . . . . . . . . . . Operator 13 | . . . . . 1 1 . . . . . . . 8 1 . . . . . 1 . . . . 1 . Watcher 12 | . 1 . . . 2 2 . . 1 . . 1 . . 1 1 . . . . 1 . . . . 2 . Swarmer 31 | . 2 . . 2 6 6 . 1 1 . . 2 . . 3 . . . 1 3 . 3 . . 1 . . Grunt 74 | . 15 . . . 7 21 . . 7 . 3 4 . . 6 4 . . 2 . . . 1 . 1 3 . Brawler 7 | . . . . . . 4 . . 2 . . . . . . . . . . . . . . . 1 . . Duelist 2 | . . . . . . 2 . . . . . . . . . . . . . . . . . . . . . Sentry 14 | . . . . . 4 2 . . . . 2 1 . . 1 1 1 1 . . . . . . 1 . . Specialist 2 | . . . . . 2 . . . . . . . . . . . . . . . . . . . . . . Hunter 13 | . . . . . 2 2 . . 3 . . . . . 1 . . . . . . . . . . 5 . Programmer 16 | . . . . . . 4 . 1 . . . 2 . . . 4 . . . 2 . . . . 1 2 . Behemoth 2 | . . . . . . . . . . . . . . . 1 1 . . . . . . . . . . . Compactor 6 | . . . . . . . . . . 6 . . . . . . . . . . . . . . . . . Cetus Guard 3 | . . . . . . . . . . . . . 3 . . . . . . . . . . . . . . M Guard 2 | . . . . . . . . . . . . . . . . . . . . . . . . . . 2 . Tracker 2 | . . . . . . . . . . . . . . . . . . . . . . . . . 2 . . Combat Programmer 3 | . . . . . . . . . . . . . . . . . . . . . . . 1 . . 2 . Investigator 1 | . . . . . . . . . . . . . . . . . . . . . . . 1 . . . . Striker 2 | . . . . . . . . . . . . . . . . . . . . . . . 2 . . . . Executioner 2 | . . . . . . . . . . . . . . . . . . . . . . . 2 . . . . Assembled 2 | . . . . . . . . . . . . . . . . . . . . . . . . . 2 . . Surgeon 2 | . . . . . . . . . . . . . . . . . . . 2 . . . . . . . . Thug 8 | . . . . . . . . . . . . . . . . . . . 8 . . . . . . . . Savage 4 | . . . . . . . . . . . . 1 . . . . . 1 2 . . . . . . . . Butcher 4 | . . . . . . . . . . . . . . . . . . . 4 . . . . . . . . Guerrilla 1 | . . . . . . . . . . . . . . . 1 . . . . . . . . . . . . Mutant 1 | . . . . . . . . . . . . . . . . . . . 1 . . . . . . . . Commander 1 | . . . . . . . . . . . . . . . . . . . 1 . . . . . . . . Knight 1 | . . . . . . . . . . . . . . . . . . . 1 . . . . . . . . Best Kill Streak 14 | 3 3 . . 2 9 14 . 2 4 2 2 5 2 2 10 6 1 1 7 3 3 2 3 2 3 7 1 Combat Bots Only 8 | . 3 . . 2 3 8 . 1 4 2 2 3 2 . 5 3 1 1 6 3 . 2 2 . 3 6 1 Max Kills in Single Turn 5 | 1 1 . . 2 2 3 . 1 2 1 1 1 1 1 5 3 1 1 1 1 1 1 1 2 4 4 1 Gunslinging 2 | . . . . . 1 1 . . . . . . . . 1 . . . . . . . . . . 2 . Exploded 3 | . . . . . . 1 . . 2 . 1 . . . 3 2 . . 1 . . . . . . . . Melee 1 | . 1 . . . . 1 . . . . 1 1 . . 1 . . . 1 1 . 1 . . . . . Uniques/NPCs Destroyed 3 | . . . . . . . . . . . . . . . . . . . . . . . . . . 2 1 MAIN.C Shell (-1/Command) MAIN.C (-1/Command) A8 (-1/Access_0) Combat | -11 -10 -10 -10 -9 -8 -7 -7 -7 -5 -5 -5 -5 -5 -5 -5 -4 -4 -4 -4 -3 -3 -3 -3 -2 -1 -1 -1 -------- Run | Yrd Mat Min Exi Min Mat Fac Sto Rec Fac Was Fac Ext Cet Arc Hub Fac Upp Upp War Pro Res Qua Sec Res Acc Com Ac0 Hostile Shots Fired 2838 | . 106 . . 1 62 266 3 4 55 1 57 277 14 8 155 75 4 6 560 48 24 57 359 21 231 240 204 Missed 984 | . 32 . . . 18 95 1 . 9 . 21 90 3 3 40 13 1 1 206 7 9 27 142 7 62 68 129 Hits 1854 | . 74 . . 1 44 171 2 4 46 1 36 187 11 5 115 62 3 5 354 41 15 30 217 14 169 172 75 Melee 59 | . . . . . . 17 . . . 1 . 5 . . . . . . 11 . 4 . 3 7 2 . 9 Projectile 1795 | . 74 . . 1 44 154 2 4 46 . 36 182 11 5 115 62 3 5 343 41 11 30 214 7 167 172 66 AOE 21 | . . . . . . . . . . . . . . . . . . . . . . . 1 . . 20 . Critical Strikes 105 | . 1 . . . 1 13 . . 2 1 2 16 5 . 7 2 . . 20 2 . 2 4 4 5 14 4 Part Disruptions 3 | . . . . . . . . . . . . . . . . . . . 3 . . . . . . . . Damage Taken 33230 | . 867 . . 17 585 2958 26 90 1148 36 737 3188 314 124 2783 1716 53 115 7263 864 399 689 3831 197 836 3399 995 Core 5759 | . 179 . . . 75 512 . . 134 . 178 367 24 . 216 100 . . 734 120 69 67 1254 60 289 1066 315 Absorbed by Shields 2118 | . . . . . . 56 . . . . . 139 . . . . 23 . 82 . . . 396 . 985 341 96 Reduced by Siege Mode 398 | . . . . . . . . . . . . . . . 173 121 14 18 47 25 . . . . . . . Redirected to Shielding 58 | . . . . . . . . . . . . . . . . . . . 58 . . . . . . . . Ignored by Resistances 9360 | . . . . . . . . . . . . 540 . . . . . . 25 . . . 1791 201 1898 3837 1068 Regen/Repaired (Parts) 1023 | . 54 . . . . . . . 78 . . . . . . 796 . . . . 95 . . . . . . Core Remaining (%) 42 | 100 . . . 28 86 . . 26 . . . . . . 8 . . . . 17 . . 18 95 . . 2 Volleys Fired 1140 | 16 62 . 13 1 53 115 5 6 53 131 2 55 9 23 40 62 15 13 65 28 3 27 49 35 31 208 20 Largest 4 | 2 2 . 2 2 3 3 3 3 3 2 1 2 3 3 3 3 3 3 3 2 1 1 2 4 4 4 4 Hottest 400 | 60 60 . 46 47 119 260 140 140 180 180 90 99 167 240 310 310 148 148 221 127 113 113 200 400 400 400 400 Shots Fired 2279 | 31 108 . 25 2 154 231 7 25 80 150 2 62 27 66 93 151 21 19 146 30 3 27 94 52 66 542 65 Gun 1651 | 31 108 . 25 2 154 134 1 9 3 . . . 9 66 88 145 7 9 32 12 1 . 94 52 62 542 65 Cannon 588 | . . . . . . 85 6 16 59 150 2 62 18 . . 3 14 10 112 18 2 27 . . 4 . . Launcher 40 | . . . . . . 12 . . 18 . . . . . 5 3 . . 2 . . . . . . . . Special . | . . . . . . . . . . . . . . . . . . . . . . . . . . . . Kinetic 430 | 16 48 . 25 2 132 . . . . . . 32 18 10 31 86 2 6 11 10 1 . . . . . . Thermal 844 | 15 60 . . . . 115 7 25 62 150 2 7 9 56 57 62 19 13 133 20 1 27 . . 4 . . Explosive . | . . . . . . . . . . . . . . . . . . . . . . . . . . . . Electromagnetic 264 | . . . . . 22 116 . . 18 . . 23 . . 5 3 . . 2 . 1 . . . . 74 . Slashing 741 | . . . . . . . . . . . . . . . . . . . . . . . 94 52 62 468 65 Robot Hit Streak 39 | 5 14 . 12 1 11 13 5 5 15 14 . 5 5 12 15 18 15 5 18 18 . . 16 1 6 39 22 Robot Miss Streak 6 | 3 3 . 1 2 5 6 2 5 3 5 . 5 1 2 4 3 1 1 2 3 . . 4 1 3 4 4 Penetration Max 1 | . . . . . . . . . . . . . . 1 1 1 . . . . . . 1 1 1 1 . Secondary Targets 19 | . . . . . 2 1 . . . . . . . . 2 1 . . . . . . 1 . 2 9 1 Max Gunslinging Chain 2 | . . . . . 1 1 . . . . . . . . 1 1 . . . . . . 1 . 1 2 1 Capacitor 10 | . . . . . . . . . . . . . . . . . . . 10 . . . . . . . . Shots Hit Robots 1483 | 16 79 . 29 1 102 161 3 17 43 95 18 61 17 41 65 108 5 8 117 14 17 9 59 1 22 341 34 Core Hits 653 | 5 29 . 12 2 65 118 1 10 40 18 5 22 5 18 44 47 3 3 46 8 3 5 15 2 15 99 13 Critical Kills 17 | . 2 . 1 . . . . . . . . 1 3 . . 7 . 1 2 . . . . . . . . Critical Parts Destroyed 23 | . 6 . 1 . . . . . . . . 2 . 1 3 5 . . 1 . 4 . . . . . . Critical Strikes 57 | . 8 . 3 . . . . . . . 3 7 3 1 3 15 . 1 5 . 5 1 . . 1 1 . Meltdown 6 | . . . . . . . . . . . . . 3 . . . . 1 2 . . . . . . . . Destroy 23 | . 1 . 2 . . . . . . . . . . 1 3 15 . . 1 . . . . . . . . Smash 14 | . 7 . . . . . . . . . . 3 . . . . . . . . 4 . . . . . . Sever 11 | . . . 1 . . . . . . . . 4 . . . . . . 2 . 1 1 . . 1 1 . Impale 3 | . . . . . . . . . . . 3 . . . . . . . . . . . . . . . . Melee Attacks 257 | . 18 . 8 . 1 40 . . 1 . 32 32 . . . . . . 18 6 65 31 5 . . . . Impact 63 | . 18 . . . . . . . . . . 11 . . . . . . . 6 28 . . . . . . Slashing 167 | . . . 8 . 1 40 . . 1 . 5 21 . . . . . . 18 . 37 31 5 . . . . Piercing 27 | . . . . . . . . . . . 27 . . . . . . . . . . . . . . . . Sneak Attacks 21 | . 2 . . . . 4 . . 1 . 1 2 . . . . . . . . 10 1 . . . . . Combat Hostiles . | . . . . . . . . . . . . . . . . . . . . . . . . . . . . Follow-up Attacks 3 | . 1 . . . . . . . . . 1 . . . . . . . 1 . . . . . . . . Damage Inflicted 60263 | 162 1391 . 883 21 1754 5562 65 382 2208 3001 851 2410 477 1252 2849 4051 84 207 4352 446 1586 591 3733 375 1597 18203 1770 Guns 38389 | 162 685 . 319 21 1720 2122 12 157 35 . . . 133 1252 1816 3383 54 110 662 215 . . 3662 375 1597 18127 1770 Cannons 9997 | . . . . . . 1006 53 225 1032 3001 . 1257 344 . . 66 30 97 2692 194 . . . . . . . Explosions 4693 | . . . . . 30 1636 . . 1064 . . 51 . . 997 579 . . 260 . . . . . . 76 . Melee 7029 | . 703 . 564 . . 770 . . 77 . 844 1102 . . . . . . 719 37 1586 556 71 . . . . Ramming 155 | . 3 . . . 4 28 . . . . 7 . . . 36 23 . . 19 . . 35 . . . . . Kinetic 6384 | 34 212 . 319 21 1455 . . . . . . 717 220 186 589 2193 24 46 211 157 . . . . . . . Thermal 15509 | 128 473 . . . 30 2396 65 382 1067 3001 . 160 257 1066 1476 1316 60 161 3143 252 . . . . . 76 . Explosive 162 | . . . . . . . . . . . . . . . . . . . 162 . . . . . . . . Electromagnetic 5551 | . . . . . 265 2368 . . 1064 . . 431 . . 748 519 . . 98 . . . . . . 58 . Impact 2005 | . 703 . . . . . . . . . . 272 . . . . . . . 37 993 . . . . . . Slashing 29696 | . . . 564 . . 770 . . 77 . 43 830 . . . . . . 719 . 593 556 3733 375 1597 18069 1770 Piercing 801 | . . . . . . . . . . . 801 . . . . . . . . . . . . . . . . Highest Corruption 27 | . 2 2 2 2 6 27 24 21 . . . . . . 13 2 2 2 8 9 . . . . . . . Average Corruption 5 | . 2 2 2 2 4 12 23 8 . . . . . . 1 1 2 2 2 8 . . . . . . . Corruption Purged 23 | . . . . . . 4 4 15 . . . . . . . . . . . . . . . . . . . Corruption Blocked 1 | . . . . . . . . . . . . 1 . . . . . . . . . . . . . . . Effects 269 | . 24 10 20 2 23 46 12 79 . . . . . . 4 7 7 6 14 15 . . . . . . . Message Errors 56 | . 2 1 6 . 3 10 4 16 . . . . . . 2 4 1 2 3 2 . . . . . . . Matter Fused 73 | . 4 3 6 . 4 15 4 18 . . . . . . 1 1 3 3 5 6 . . . . . . . Heat Flow Errors 30 | . 5 1 1 1 6 2 . 7 . . . . . . . . 3 . 2 2 . . . . . . . Energy Discharges 26 | . 3 2 . . 2 3 1 12 . . . . . . . . . 1 2 . . . . . . . . Parts Rejected 1 | . . . . . . . . . . . . . . . . . . . 1 . . . . . . . . Parts Fused 5 | . . 1 1 . . . 1 2 . . . . . . . . . . . . . . . . . . . Data Loss (minor) 41 | . 5 2 3 1 5 6 2 13 . . . . . . 1 1 . . . 2 . . . . . . . Data Loss (major) 16 | . 2 . 3 . 2 3 . 3 . . . . . . . . . . 1 2 . . . . . . . Misfires 10 | . 2 . . . . . . 7 . . . . . . . 1 . . . . . . . . . . . Alerts 3 | . . . . . 1 . . 1 . . . . . . . . . . . 1 . . . . . . . Weapon Failures 8 | . 1 . . . . 7 . . . . . . . . . . . . . . . . . . . . . Overload Shots 61 | . . . . . . 14 4 . 13 8 2 . . . 2 13 . . 5 . . . . . . . . Effects 3 | . . . . . . . . . 1 . . . . . . . . . 2 . . . . . . . . Energy Bleed 1 | . . . . . . . . . . . . . . . . . . . 1 . . . . . . . . Heat Surge 1 | . . . . . . . . . 1 . . . . . . . . . . . . . . . . . . Short Circuit 1 | . . . . . . . . . . . . . . . . . . . 1 . . . . . . . . Overflow Damage 1875 | . 364 . . . . 107 . 9 6 . 261 137 . . . 4 . . 40 7 799 130 11 . . . . Projectiles 92 | . . . . . . 21 . 9 6 . . 12 . . . 4 . . 40 . . . . . . . . Explosions 24 | . . . . . . 24 . . . . . . . . . . . . . . . . . . . . . Melee 1759 | . 364 . . . . 62 . . . . 261 125 . . . . . . . 7 799 130 11 . . . . Knockbacks 20 | . 5 . . . . . . . . . 1 9 . . . 1 . . . . 4 . . . . . . Impact 12 | . 4 . . . . . . . . . 1 2 . . . 1 . . . . 4 . . . . . . Kinetic 6 | . . . . . . . . . . . . 6 . . . . . . . . . . . . . . . Secondary 2 | . 1 . . . . . . . . . . 1 . . . . . . . . . . . . . . . Self-Inflicted Damage 564 | . . . . . 6 335 . . 9 . . . . . 139 . . . 20 . . 17 38 . . . . Shots 18 | . . . . . 1 11 . . 1 . . . . . 3 . . . 1 . . . 1 . . . . Rammed 9 | . 1 . . . . . . . . . . . . . 2 1 . . 2 . . 3 . . . . . Targets Rammed 17 | . 1 . . . 1 3 . . . . 1 . . . 4 1 . . 3 . . 3 . . . . . Kicked 5 | . . . . . . 3 . . . . 1 . . . . . . . 1 . . . . . . . . Crushed 3 | . . . . . 1 . . . . . . . . . 2 . . . . . . . . . . . . Highest Temperature 454 | 60 225 199 264 92 233 277 108 217 143 210 52 254 . 87 376 381 176 147 454 296 131 98 31 186 208 380 155 Average Temperature 77 | 25 78 101 52 38 47 89 42 65 36 67 25 82 . 53 87 88 65 67 119 91 27 33 10 82 95 110 61 Received Heat Transfer 6016 | . 447 . . 6 162 788 18 48 147 . 333 1027 . 9 405 208 8 18 1664 . . 102 183 36 58 142 207 Effects 13 | . . . . . 1 . . . . . . . . . 2 1 . . 1 1 . . . . . 7 . Shutdowns 2 | . . . . . . . . . . . . . . . . 1 . . 1 . . . . . . . . Energy Bleed 2 | . . . . . 1 . . . . . . . . . 1 . . . . . . . . . . . . Interference 7 | . . . . . . . . . . . . . . . . . . . . 1 . . . . . 6 . Short Circuit 1 | . . . . . . . . . . . . . . . 1 . . . . . . . . . . . . Damage (minor) 1 | . . . . . . . . . . . . . . . . . . . . . . . . . . 1 . Siege Activations 22 | . . . . . . . . . . . . . . 1 2 6 1 1 10 1 . . . . . . . Total Turns 314 | . . . . . . . . . . . . . . 6 55 74 13 16 142 8 . . . . . . . Longest Duration 41 | . . . . . . . . . . . . . . 6 35 35 13 16 41 8 . . . . . . . Martial Activations . | . . . . . . . . . . . . . . . . . . . . . . . . . . . . Shielding Activations . | . . . . . . . . . . . . . . . . . . . . . . . . . . . . Robots Disrupted . | . . . . . . . . . . . . . . . . . . . . . . . . . . . . Combat Hostiles . | . . . . . . . . . . . . . . . . . . . . . . . . . . . . Robots Corrupted 19 | . 4 . . . . 4 . . 4 . . 2 . . . 1 . . . . 4 . . . . . . Combat Hostiles 14 | . 3 . . . . 4 . . 4 . . 2 . . . 1 . . . . . . . . . . . Parts Fried 29 | . 3 . . . 1 10 . . 4 . . 1 . . 1 1 . . 1 1 5 . . . . 1 . Impact Corruptions 33 | . 11 . . . . . . . . . . 4 . . . . . . . 1 17 . . . . . . Robots Melted 8 | . . . . . . 1 . . . . . . 3 . 1 . . 1 2 . . . . . . . . Combat Hostiles 7 | . . . . . . 1 . . . . . . 3 . 1 . . . 2 . . . . . . . . Parts Melted 40 | . . . . . . 12 . 3 3 . . . 2 3 3 3 . . 11 . . . . . . . . Heat Transferred 21633 | 275 1050 . . . . 3546 99 646 1457 4107 . 198 400 1332 1967 1608 87 224 4365 222 . . . . . 50 . Parts Sabotaged . | . . . . . . . . . . . . . . . . . . . . . . . . . . . . Parts Stolen . | . . . . . . . . . . . . . . . . . . . . . . . . . . . . Parts Stripped . | . . . . . . . . . . . . . . . . . . . . . . . . . . . . Power Chain Reactions 18 | . . . . . 1 9 . . 1 . . 1 . . 4 1 . . . . . . . . . 1 . Alert | -11 -10 -10 -10 -9 -8 -7 -7 -7 -5 -5 -5 -5 -5 -5 -5 -4 -4 -4 -4 -3 -3 -3 -3 -2 -1 -1 -1 ------- Run | Yrd Mat Min Exi Min Mat Fac Sto Rec Fac Was Fac Ext Cet Arc Hub Fac Upp Upp War Pro Res Qua Sec Res Acc Com Ac0 Maximum Alert Level 5 | . . . . . . 3 2 . 3 1 . . . . 2 1 . . . . . . 5 5 5 5 . Low Security (%) 66 | 100 100 100 . 100 100 25 . 100 . 76 100 100 100 100 56 76 . . . . 100 100 38 . . . . Level 1 8 | . . . . . . 26 14 . 37 23 . . . . 34 23 . . . . . . . . . . . Level 2 2 | . . . . . . 9 85 . 6 . . . . . 9 . . . . . . . . . . . . Level 3 6 | . . . . . . 37 . . 56 . . . . . . . . . . . . . . . 6 . . Level 4 3 | . . . . . . . . . . . . . . . . . . . . . . . . 95 12 11 . Level 5 10 | . . . . . . . . . . . . . . . . . . . . . . . . . . 83 . High Security . | . . . . . . . . . . . . . . . . . . . . . . . . . . 5 . Max Security 2 | . . . . . . . . . . . . . . . . . . . . . . . 61 4 80 . . Peak Influence 2320 | 10 139 49 . 128 161 1030 525 193 1005 347 57 188 140 159 518 286 . . . . 53 161 2320 1624 2186 1739 . Initial 1398 | . . 49 . . 41 71 468 193 300 343 . 6 14 30 . 233 . . . . . 9 73 1305 1100 1398 . Average 254 | 1 59 3 . 44 80 486 450 27 651 104 24 53 92 53 147 153 . . . . 12 83 1170 1318 1693 1536 . Influence Increases 13299 | 20 639 . 26 128 759 1650 160 321 1633 24 202 736 303 253 892 634 20 20 105 135 327 472 1006 357 743 1397 337 Destroy 0b10 Robot/C 4600 | . 340 . . 80 500 820 . 20 620 . 100 440 160 80 320 200 20 20 60 100 . 60 140 20 180 320 . Destroy 0b10 Robot/NC 670 | 20 10 . 25 . 60 100 . 20 55 . 5 35 10 45 55 65 . . . . 50 5 . 10 5 95 . Destroy Leader 818 | . 94 . . 10 110 180 . . 110 . 20 46 . . 62 56 . . . 20 6 10 10 10 40 34 . Allied During Kill 657 | . . . 1 23 23 . . 9 196 . . 134 115 44 30 . . . . . . . . 28 23 31 . Successful Hack 683 | . 15 . . . . 39 7 26 28 . 18 18 . . 36 105 . . . . 61 211 46 52 . 21 . Select Force Hacks 240 | . 60 . . . . . . 180 . . . . . . . . . . . . . . . . . . . Disable Machine 915 | . 15 . . 15 15 45 . 45 75 . . 15 . 60 120 135 . . . . 15 45 150 30 60 60 15 Anti-Garrison Action 350 | . . . . . . 150 150 . . . . . . . . . . . . . . . . . . 50 . Destroy Structure 2431 | . . . . . 6 76 3 21 204 24 14 48 18 24 254 58 . . . . 90 66 120 207 135 741 322 Advance Influence 300 | . . . . . . . . . 300 . . . . . . . . . . . . . . . . . . Partial Spotted 60 | . . . . . . . . . . . . . . . . 15 . . . . . 45 . . . . . Lose Combat Pursuer 1575 | . 105 . . . 45 240 . . 45 . 45 . . . 15 . . . 45 15 105 30 540 . 300 45 . Influence Decreases 15404 | 20 511 128 26 20 709 779 691 819 652 1005 188 724 252 330 416 839 291 20 91 149 311 357 248 1405 840 1028 2555 Entered New Map 7235 | . . 79 . . 67 87 561 305 . 638 . 8 12 47 . 243 101 . . 14 . 7 58 1015 650 788 2555 Time Decay 6486 | 20 481 49 26 20 562 532 130 514 452 347 168 492 180 243 277 546 190 20 60 100 311 296 100 170 30 170 . Lost Part 702 | . 30 . . . . 160 . . 90 10 20 86 . . 60 50 . . 31 35 . 10 90 . . 30 . Lost Ally 894 | . . . . . 80 . . . 110 10 . 138 60 40 26 . . . . . . 10 . 220 160 40 . Purge Threat 87 | . . . . . . . . . . . . . . . 53 . . . . . . 34 . . . . . Squads Dispatched 115 | . 6 . . . 2 14 2 . 7 . 1 1 . . 4 4 . . . . 8 4 25 10 23 4 . Investigation 18 | . 5 . . . . 3 . . 2 . . 1 . . 2 1 . . . . 3 1 . . . . . Extermination 12 | . . . . . . 3 . . 2 . 1 . . . 1 2 . . . . . 2 . 1 . . . Reinforcement 25 | . 1 . . . 2 6 . . 3 . . . . . 1 1 . . . . 5 1 3 2 . . . Assault 55 | . . . . . . 2 2 . . . . . . . . . . . . . . . 20 7 20 4 . Garrison . | . . . . . . . . . . . . . . . . . . . . . . . . . . . . Intercept 5 | . . . . . . . . . . . . . . . . . . . . . . . 2 . 3 . . Searches Triggered . | . . . . . . . . . . . . . . . . . . . . . . . . . . . . Construction Impeded 6 | . . . . . . 3 . . 1 . . . . . 1 1 . . . . . . . . . . . Haulers Reinforced 3 | . . . . . . 1 . . . . . . . . . . . . . . 2 . . . . . . Active Scanning Responses . | . . . . . . . . . . . . . . . . . . . . . . . . . . . . Cargo Convoy Interrupts . | . . . . . . . . . . . . . . . . . . . . . . . . . . . . Stealth | -11 -10 -10 -10 -9 -8 -7 -7 -7 -5 -5 -5 -5 -5 -5 -5 -4 -4 -4 -4 -3 -3 -3 -3 -2 -1 -1 -1 --------- Run | Yrd Mat Min Exi Min Mat Fac Sto Rec Fac Was Fac Ext Cet Arc Hub Fac Upp Upp War Pro Res Qua Sec Res Acc Com Ac0 Distress Signals 53 | . 5 . . . 4 4 . . . . . 3 2 . 1 . . . 3 . 6 2 2 . 1 20 . Communications Jammed 27 | . . . . . . . . . . . . 16 . . 2 . . . . . 8 1 . . . . . Distress Signals 27 | . . . . . . . . . . . . 16 . . 2 . . . . . 8 1 . . . . . Times Spotted 582 | . 35 . . 4 36 67 6 3 42 6 8 28 11 10 33 15 1 1 55 6 14 17 85 17 35 29 18 Peak Tracking Total 20 | . 6 . . 4 5 7 6 4 5 3 6 5 5 2 11 3 1 1 12 3 6 6 20 13 13 10 19 Tactical Retreats 60 | . 7 . . . 2 11 . . 1 . 2 . . . 1 . . . 3 1 5 4 14 . 5 2 2 Traps | -11 -10 -10 -10 -9 -8 -7 -7 -7 -5 -5 -5 -5 -5 -5 -5 -4 -4 -4 -4 -3 -3 -3 -3 -2 -1 -1 -1 ------- Run | Yrd Mat Min Exi Min Mat Fac Sto Rec Fac Was Fac Ext Cet Arc Hub Fac Upp Upp War Pro Res Qua Sec Res Acc Com Ac0 Traps Triggered 20 | . 2 . . . 1 6 . . 1 . . . . . 1 2 . . 3 . 1 . 1 . 1 1 . Indirectly 2 | . . . . . . 1 . . . . . . . . . . . . 1 . . . . . . . . Trap Hack Attempts . | . . . . . . . . . . . . . . . . . . . . . . . . . . . . Triggered . | . . . . . . . . . . . . . . . . . . . . . . . . . . . . Disarmed . | . . . . . . . . . . . . . . . . . . . . . . . . . . . . Reprogrammed . | . . . . . . . . . . . . . . . . . . . . . . . . . . . . Reused . | . . . . . . . . . . . . . . . . . . . . . . . . . . . . Traps Extracted . | . . . . . . . . . . . . . . . . . . . . . . . . . . . . Installed . | . . . . . . . . . . . . . . . . . . . . . . . . . . . . Triggered . | . . . . . . . . . . . . . . . . . . . . . . . . . . . . Objects Rigged 8 | . . . . . . . . . . . 1 . . . 4 . . . 3 . . . . . . . . Exploded 7 | . . . . . . . . . . . 1 . . . 3 . . . 3 . . . . . . . . Machines | -11 -10 -10 -10 -9 -8 -7 -7 -7 -5 -5 -5 -5 -5 -5 -5 -4 -4 -4 -4 -3 -3 -3 -3 -2 -1 -1 -1 ---------- Run | Yrd Mat Min Exi Min Mat Fac Sto Rec Fac Was Fac Ext Cet Arc Hub Fac Upp Upp War Pro Res Qua Sec Res Acc Com Ac0 Machines Disabled 79 | . 1 . . 1 1 4 1 5 5 . . 4 1 4 8 9 . . 5 . 1 3 12 2 4 7 1 Max in Single Turn 4 | . 1 . . . 1 1 1 1 1 . . 1 . 1 4 3 . . 3 . 1 1 1 1 1 2 1 Garrison Access 8 | . . . . . 1 2 1 . . . . . . . . 1 . . . . 1 1 . 1 . . . Phase Generator 1 | . . . . . . . . . . . . . . . . . . . . . . . . . . 1 . Network Hub 2 | . . . . . . . . . . . . . . . 2 . . . . . . . . . . . . Machines Repaired . | . . . . . . . . . . . . . . . . . . . . . . . . . . . . Machines Dismantled 1 | . . . . . . . . . . . . . . . 1 . . . . . . . . . . . . Machines Sabotaged . | . . . . . . . . . . . . . . . . . . . . . . . . . . . . Overloaded Fab Kills . | . . . . . . . . . . . . . . . . . . . . . . . . . . . . Hacking | -11 -10 -10 -10 -9 -8 -7 -7 -7 -5 -5 -5 -5 -5 -5 -5 -4 -4 -4 -4 -3 -3 -3 -3 -2 -1 -1 -1 --------- Run | Yrd Mat Min Exi Min Mat Fac Sto Rec Fac Was Fac Ext Cet Arc Hub Fac Upp Upp War Pro Res Qua Sec Res Acc Com Ac0 Machines Accessed 101 | . 9 . 2 . 4 7 3 12 5 . 1 12 . . 6 6 . 1 1 1 6 14 3 5 . 3 . Terminals 63 | . 6 . . . 3 4 2 5 2 . 1 12 . . 6 2 . . . 1 1 11 3 1 . 3 . Fabricators 6 | . . . . . . 1 . . 1 . . . . . . 1 . . . . 2 . . 1 . . . Repair Stations 4 | . 1 . . . . . . . 1 . . . . . . 1 . . . . 1 . . . . . . Recycling Units 10 | . 2 . . . . . . 6 1 . . . . . . 1 . . . . . . . . . . . Scanalyzers 5 | . . . . . . . . . . . . . . . . . . . . . 1 2 . 2 . . . Garrison Access 8 | . . . . . 1 2 1 . . . . . . . . 1 . . . . 1 1 . 1 . . . Total Hacks 283 | . 27 . 2 . 14 14 8 25 8 . 2 19 . . 14 26 . 1 1 1 35 50 12 14 . 10 . Successful 136 | . 13 . 2 . 8 4 1 15 4 . 1 12 . . 6 15 . 1 1 1 15 25 4 6 . 2 . Failed 146 | . 13 . . . 6 10 7 10 4 . 1 7 . . 8 11 . . . . 20 25 8 8 . 8 . Catastrophic 24 | . 3 . . . . 2 3 . 2 . . . . . . 1 . . . . 2 5 2 3 . 1 . Database Lockouts 1 | . 1 . . . . . . . . . . . . . . . . . . . . . . . . . . Manual 140 | . 26 . 1 . 10 9 2 25 8 . 1 4 . . 6 14 . . . . 5 14 7 4 . 4 . Terminals 189 | . 23 . . . 11 8 6 16 4 . 2 19 . . 14 10 . . . 1 4 43 12 6 . 10 . Fabricators 19 | . . . . . . 2 . . 1 . . . . . . 3 . . . . 9 . . 4 . . . Repair Stations 13 | . 1 . . . . . . . 1 . . . . . . 6 . . . . 5 . . . . . . Recycling Units 18 | . 3 . . . . . . 8 2 . . . . . . 5 . . . . . . . . . . . Scanalyzers 25 | . . . . . . . . . . . . . . . . . . . . . 16 6 . 3 . . . Garrison Access 14 | . . . . . 3 4 2 . . . . . . . . 2 . . . . 1 1 . 1 . . . Terminal Hacks 48 | . 2 . 2 . 1 . 1 2 . . . 10 . . 3 3 . 1 1 1 1 16 2 1 . 1 . Record 6 | . . . 1 . 1 . . 1 . . . . . . . . . . . 1 . 2 . . . . . Part Schematic 2 | . . . . . . . . . . . . . . . . 2 . . . . . . . . . . . Robot Analysis 4 | . 2 . . . . . . 1 . . . . . . . . . . . . . . 1 . . . . Open Door 15 | . . . . . . . 1 . . . . 9 . . . . . 1 1 . . 1 1 . . 1 . Level Access Points 1 | . . . . . . . . . . . . . . . 1 . . . . . . . . . . . . Branch Access Points 1 | . . . . . . . . . . . . . . . . 1 . . . . . . . . . . . Emergency Access Points 1 | . . . . . . . . . . . . . . . . . . . . . . 1 . . . . . Terminal Index 2 | . . . . . . . . . . . . . . . . . . . . . 1 1 . . . . . Alert Level 2 | . . . . . . . . . . . . 1 . . . . . . . . . 1 . . . . . Unreport Threat 3 | . . . . . . . . . . . . . . . 2 . . . . . . 1 . . . . . Locate Traps 4 | . . . . . . . . . . . . . . . . . . . . . . 3 . 1 . . . Recall Extermination 2 | . . . . . . . . . . . . . . . . . . . . . . 2 . . . . . Zone Layout 4 | . . . . . . . . . . . . . . . . . . . . . . 4 . . . . . Proto ID Catalog 1 | . . . 1 . . . . . . . . . . . . . . . . . . . . . . . . Fabricator Hacks 4 | . . . . . . . . . . . . . . . . 1 . . . . 2 . . 1 . . . Network Status 3 | . . . . . . . . . . . . . . . . 1 . . . . 1 . . 1 . . . Load Schematic 1 | . . . . . . . . . . . . . . . . . . . . . 1 . . . . . . Repair Station Hacks 5 | . . . . . . . . . . . . . . . . 3 . . . . 2 . . . . . . Scan Component 2 | . . . . . . . . . . . . . . . . 1 . . . . 1 . . . . . . Repair 2 | . . . . . . . . . . . . . . . . 1 . . . . 1 . . . . . . Refit 1 | . . . . . . . . . . . . . . . . 1 . . . . . . . . . . . Recycling Unit Hacks 1 | . . . . . . . . . . . . . . . . 1 . . . . . . . . . . . Retrieve Components 1 | . . . . . . . . . . . . . . . . 1 . . . . . . . . . . . Scanalyzer 10 | . . . . . . . . . . . . . . . . . . . . . 7 2 . 1 . . . Insert Component 6 | . . . . . . . . . . . . . . . . . . . . . 4 1 . 1 . . . Analyze 4 | . . . . . . . . . . . . . . . . . . . . . 3 1 . . . . . Garrison Access Hacks 6 | . . . . . 1 1 . . . . . . . . . 1 . . . . 1 1 . 1 . . . Seal Access 6 | . . . . . 1 1 . . . . . . . . . 1 . . . . 1 1 . 1 . . . Unauthorized Hacks 62 | . 11 . . . 6 3 . 13 4 . 1 2 . . 3 6 . . . . 2 6 2 2 . 1 . Terminals 41 | . 8 . . . 6 3 . 7 1 . 1 2 . . 3 1 . . . . . 5 2 1 . 1 . Assimilate 2 | . . . . . . . . . . . . . . . . . . . . . . 2 . . . . . Botnet 21 | . 2 . . . 3 2 . 2 1 . 1 1 . . 3 1 . . . . . 2 1 1 . 1 . Skim 18 | . 6 . . . 3 1 . 5 . . . 1 . . . . . . . . . 1 1 . . . . Fabricators 3 | . . . . . . . . . . . . . . . . 2 . . . . 1 . . . . . . Report 1 | . . . . . . . . . . . . . . . . 1 . . . . . . . . . . . Prioritize 1 | . . . . . . . . . . . . . . . . . . . . . 1 . . . . . . Haulers 1 | . . . . . . . . . . . . . . . . 1 . . . . . . . . . . . Repair Stations 3 | . 1 . . . . . . . 1 . . . . . . . . . . . 1 . . . . . . Mechanics 1 | . . . . . . . . . . . . . . . . . . . . . 1 . . . . . . Patch 2 | . 1 . . . . . . . 1 . . . . . . . . . . . . . . . . . . Recycling Units 13 | . 2 . . . . . . 6 2 . . . . . . 3 . . . . . . . . . . . Reject 1 | . . . . . . . . . . . . . . . . 1 . . . . . . . . . . . Recyclers 2 | . . . . . . . . . 1 . . . . . . 1 . . . . . . . . . . . Mask 2 | . . . . . . . . . 1 . . . . . . 1 . . . . . . . . . . . Tunnel 8 | . 2 . . . . . . 6 . . . . . . . . . . . . . . . . . . . Scanalyzers 2 | . . . . . . . . . . . . . . . . . . . . . . 1 . 1 . . . Researchers 2 | . . . . . . . . . . . . . . . . . . . . . . 1 . 1 . . . Garrison Access . | . . . . . . . . . . . . . . . . . . . . . . . . . . . . Data Cores Recovered 2 | . . . . . . 1 . . . . . . . . . . . . . . . . . . . 1 . Used 1 | . . . . . . 1 . . . . . . . . . . . . . . . . . . . . . Hacking Detections 68 | . 6 . . . 4 6 3 5 4 . 1 7 . . 6 5 . . . . 5 9 2 3 . 2 . Full Trace Events 9 | . 1 . . . . 2 . . . . . 1 . . 1 1 . . . . 2 1 . . . . . Feedback Events 2 | . . . . . . . . . . . . . . . 2 . . . . . . . . . . . . Corruption 1 | . . . . . . . . . . . . . . . 1 . . . . . . . . . . . . Hackware Fried 1 | . . . . . . . . . . . . . . . 1 . . . . . . . . . . . . Feedback Blocked . | . . . . . . . . . . . . . . . . . . . . . . . . . . . . Robot Schematics Acquired . | . . . . . . . . . . . . . . . . . . . . . . . . . . . . Robots Built . | . . . . . . . . . . . . . . . . . . . . . . . . . . . . Authchips . | . . . . . . . . . . . . . . . . . . . . . . . . . . . . Time . | . . . . . . . . . . . . . . . . . . . . . . . . . . . . Total Robot Build Rating . | . . . . . . . . . . . . . . . . . . . . . . . . . . . . Part Schematics Acquired 5 | . . . . . . . . . . . . . . . . 2 . . . . 2 1 . . . . . Parts Built . | . . . . . . . . . . . . . . . . . . . . . . . . . . . . Authchips . | . . . . . . . . . . . . . . . . . . . . . . . . . . . . Time . | . . . . . . . . . . . . . . . . . . . . . . . . . . . . Total Part Build Rating . | . . . . . . . . . . . . . . . . . . . . . . . . . . . . Parts Repaired 2 | . . . . . . . . . . . . . . . . 1 . . . . 1 . . . . . . Time 104 | . . . . . . . . . . . . . . . . 36 . . . . 68 . . . . . . Parts Recycled . | . . . . . . . . . . . . . . . . . . . . . . . . . . . . Recycled Matter . | . . . . . . . . . . . . . . . . . . . . . . . . . . . . Retrieved Matter . | . . . . . . . . . . . . . . . . . . . . . . . . . . . . Retrieved Components 1 | . . . . . . . . . . . . . . . . 1 . . . . . . . . . . . Parts Scanalyzed 4 | . . . . . . . . . . . . . . . . . . . . . 3 1 . . . . . Part Schematics Acquired 3 | . . . . . . . . . . . . . . . . . . . . . 2 1 . . . . . Parts Damaged 1 | . . . . . . . . . . . . . . . . . . . . . 1 . . . . . . Bothacking | -11 -10 -10 -10 -9 -8 -7 -7 -7 -5 -5 -5 -5 -5 -5 -5 -4 -4 -4 -4 -3 -3 -3 -3 -2 -1 -1 -1 ------------ Run | Yrd Mat Min Exi Min Mat Fac Sto Rec Fac Was Fac Ext Cet Arc Hub Fac Upp Upp War Pro Res Qua Sec Res Acc Com Ac0 Used RIF Installer . | . . . . . . . . . . . . . . . . . . . . . . . . . . . . Robots Hacked . | . . . . . . . . . . . . . . . . . . . . . . . . . . . . Non-combat . | . . . . . . . . . . . . . . . . . . . . . . . . . . . . Combat . | . . . . . . . . . . . . . . . . . . . . . . . . . . . . Robot Hacks Applied . | . . . . . . . . . . . . . . . . . . . . . . . . . . . . Relay Couplers Released 2 | . . . . . . 2 . . . . . . . . . . . . . . . . . . . . . Machine Destruction 2 | . . . . . . 2 . . . . . . . . . . . . . . . . . . . . . Fabnet Peak Effective % . | . . . . . . . . . . . . . . . . . . . . . . . . . . . . Robots Rewired 20 | . . . 5 . . . . 9 . . . 6 . . . . . . . . . . . . . . . Allies Hacked . | . . . . . . . . . . . . . . . . . . . . . . . . . . . . Hacks Repelled . | . . . . . . . . . . . . . . . . . . . . . . . . . . . . Allies | -11 -10 -10 -10 -9 -8 -7 -7 -7 -5 -5 -5 -5 -5 -5 -5 -4 -4 -4 -4 -3 -3 -3 -3 -2 -1 -1 -1 -------- Run | Yrd Mat Min Exi Min Mat Fac Sto Rec Fac Was Fac Ext Cet Arc Hub Fac Upp Upp War Pro Res Qua Sec Res Acc Com Ac0 Total Allies 160 | . . . 5 . . . . 9 . . . 21 . . . . . . . . . 1 . 45 29 50 . Largest Group 11 | . . . 5 5 5 . . 9 8 1 . 10 10 6 4 . . . . . . 1 . 11 10 6 . Highest-Rated Group 345 | . . . 66 66 66 . . 219 207 10 . 345 306 187 137 . . . . . . 26 . 153 141 86 . Highest-Rated Ally 159 | . . . 21 21 21 . . 34 34 10 . 159 39 39 39 . . . . . . 26 . 15 15 15 . Total Orders . | . . . . . . . . . . . . . . . . . . . . . . . . . . . . Ally Attacks 344 | . . . . 7 16 . . 9 50 . . 100 47 22 33 . . . . . . . . 12 32 16 . Total Damage 8028 | . . . . 74 278 . . 441 2694 . . 2414 599 303 322 . . . . . . . . 184 616 103 . Kills 76 | . . . . 2 5 . . 5 24 . . 17 8 5 6 . . . . . . . . 1 3 . . Allies Corrupted 3 | . . . . . . . . . . . . . . . . . . . . . . 1 . . 2 . . Allies Melted 2 | . . . . . . . . . . . . 1 . . . . . 1 . . . . . . . . . Intel | -11 -10 -10 -10 -9 -8 -7 -7 -7 -5 -5 -5 -5 -5 -5 -5 -4 -4 -4 -4 -3 -3 -3 -3 -2 -1 -1 -1 ------- Run | Yrd Mat Min Exi Min Mat Fac Sto Rec Fac Was Fac Ext Cet Arc Hub Fac Upp Upp War Pro Res Qua Sec Res Acc Com Ac0 Active Infowar (turns) 15405 | 24 759 . . . . 998 278 2449 1129 1211 331 896 376 719 716 1144 643 690 775 145 1250 669 201 . 2 . . Optics 260 | . . . . . . . . . . . . . . . . . . . . . 258 . 2 . . . . Sensors 8078 | . . . . . . 796 278 2252 581 . . . . . . 124 643 690 640 12 1247 665 150 . . . . Terrain 6490 | 24 369 . . . . 440 . 197 903 75 292 828 4 280 716 418 633 689 489 133 . . . . . . . Structural 727 | . . . . . . . . . . . . 1 . . . 726 . . . . . . . . . . . Seismic 2278 | 2 625 . . . . . . . 90 952 122 127 . . . 360 . . . . . . . . . . . T.N.C. 189 | . . . . . . . . . . . . . . . . 165 . . . . 24 . . . . . . Machine Analysis 2084 | . . . . . . . . . 677 411 . . . . . . . . . . 267 669 60 . . . . Cloaking 27 | . . . . . . . . . . . . . . . . . . . . . . 27 . . . . . Jamming 4414 | . . . . . . 143 . . 1 294 . 536 376 719 391 648 7 . 447 . 245 494 111 . 2 . . ECM 128 | . . . . . . . . . . . . . . . . . . . . . 9 53 66 . . . . Robot Analysis Total 4 | . 2 . . . . . . 1 . . . . . . . . . . . . . . 1 . . . . Derelict Logs Recovered 4 | . . 1 . . . . . . . . . . . . . . 1 2 . . . . . . . . . Drone Launches . | . . . . . . . . . . . . . . . . . . . . . . . . . . . . Drone Recoveries . | . . . . . . . . . . . . . . . . . . . . . . . . . . . . Exploration | -11 -10 -10 -10 -9 -8 -7 -7 -7 -5 -5 -5 -5 -5 -5 -5 -4 -4 -4 -4 -3 -3 -3 -3 -2 -1 -1 -1 ------------- Run | Yrd Mat Min Exi Min Mat Fac Sto Rec Fac Was Fac Ext Cet Arc Hub Fac Upp Upp War Pro Res Qua Sec Res Acc Com Ac0 Turns Passed 28193 | 134 1937 807 1425 102 1769 2019 278 2600 1129 1211 427 1607 376 719 740 1565 643 690 1141 570 1282 669 545 362 366 2893 187 Spaces Moved 18955 | 49 728 336 512 30 607 879 111 968 573 797 252 861 174 365 355 724 300 390 457 522 2142 1031 920 571 424 3468 409 Core 115 | 3 . . . . . . . . . . . . . . . . . . 42 70 . . . . . . . Treads 6364 | 46 728 336 512 30 607 138 111 968 22 . . 351 173 365 355 602 300 390 329 1 . . . . . . . Legs 7948 | . . . . . . 741 . . 199 797 252 501 1 . . . . . 43 27 . . 515 571 424 3468 409 Wheels 526 | . . . . . . . . . 352 . . 9 . . . 122 . . 43 . . . . . . . . Hover 2575 | . . . . . . . . . . . . . . . . . . . . 25 1322 1031 197 . . . . Flight 1219 | . . . . . . . . . . . . . . . . . . . . 399 820 . . . . . . Fastest Speed 30 | 50 160 240 240 320 240 126 240 240 90 90 90 96 160 160 160 130 160 160 50 40 34 36 30 30 30 30 30 Average Speed 112 | 153 217 240 260 320 247 155 240 240 159 100 114 143 171 160 161 165 160 160 149 69 43 43 41 36 59 42 30 Slowest Speed 570 | 160 320 240 320 320 570 400 240 240 240 360 270 480 320 160 163 245 160 160 260 200 190 98 102 90 90 90 30 Overloaded Moves . | . . . . . . . . . . . . . . . . . . . . . . . . . . . . Propulsion Burnouts . | . . . . . . . . . . . . . . . . . . . . . . . . . . . . Robots Hopped 1 | . . . . . . . . . . . . . . . . . . . . . 1 . . . . . . Potential Cave-ins 30 | . . . . . . . . . . . . . . . . . 2 2 1 . . 7 4 7 5 2 . Cave-ins Triggered . | . . . . . . . . . . . . . . . . . . . . . . . . . . . . Teleports 2 | . . . . . . . . . . . . . . . . . . . . . . . . . . 1 1 Microwarps 20 | . . . . . . . . . . . . . . . . . . . . . . . 20 . . . . Exploration Rate (%) 52 | 4 96 91 89 11 51 30 21 94 21 87 5 86 56 95 46 21 49 55 43 66 59 93 56 21 12 81 29 Regions Visited 27 Branch Regions 17 Pre-discovered Areas 16 | . 4 . 1 . . . . 10 . . . . . . . . . 1 . . . . . . . . . Known Exits Taken 14 | . . . . 1 1 1 1 1 . . 1 . . . 1 1 1 1 . 1 1 1 1 . . . . Unknown Exits Taken 11 | 1 1 1 1 . . . . . . . . 1 1 1 . . . . 1 . . . . 1 1 1 . Scrap Searched 7 | . . 1 . . . . . . . . . . . . . . 3 . . 3 . . . . . . . Spaces Dug 604 | . . . . . . 31 3 . 10 11 7 2 . . 154 13 12 7 8 19 45 42 79 69 31 50 11 Terrain Destroyed 1266 | . . . . . 5 80 3 6 14 18 7 10 5 11 189 27 19 9 46 20 45 44 97 96 60 377 78 Melee 92 | . . . . . . 17 . . . . 5 2 . . . . . . . 5 44 19 . . . . . Projectile 842 | . . . . . . 28 3 6 14 18 2 1 5 11 38 27 19 9 26 15 1 25 39 96 60 321 78 AOE 332 | . . . . . 5 35 . . . . . 7 . . 151 . . . 20 . . . 58 . . 56 . Terrain Rammed . | . . . . . . . . . . . . . . . . . . . . . . . . . . . . Walls Destroyed . | . . . . . . . . . . . . . . . . . . . . . . . . . . . . Machines Disabled . | . . . . . . . . . . . . . . . . . . . . . . . . . . . . Actions | -11 -10 -10 -10 -9 -8 -7 -7 -7 -5 -5 -5 -5 -5 -5 -5 -4 -4 -4 -4 -3 -3 -3 -3 -2 -1 -1 -1 --------- Run | Yrd Mat Min Exi Min Mat Fac Sto Rec Fac Was Fac Ext Cet Arc Hub Fac Upp Upp War Pro Res Qua Sec Res Acc Com Ac0 Total 23671 | 77 950 337 578 35 779 1248 117 1230 704 1057 329 1119 236 449 440 987 443 439 763 690 2406 1169 877 685 495 4595 437 Wait 2079 | 1 95 . 4 4 39 66 1 162 5 97 10 35 20 42 13 103 119 33 135 100 53 18 22 53 17 828 4 Move 18738 | 48 727 335 511 29 606 878 110 967 573 796 251 860 173 364 354 723 299 389 456 521 2139 1030 731 570 423 3467 408 Hop 1 | . . . . . . . . . . . . . . . . . . . . . 1 . . . . . . Pick Up 248 | 3 26 . 9 . 22 20 1 5 15 3 7 14 8 5 4 27 2 1 12 2 22 11 16 3 2 8 . Fast Attach 227 | 7 . . 2 . 4 17 . 8 13 5 5 24 6 2 1 10 1 . 23 15 38 7 12 7 4 15 1 Attach 107 | 1 4 . . . 4 22 . 2 4 4 3 8 . . 4 7 . . 13 4 5 4 8 3 3 4 . Detach 74 | 1 1 . 1 . 1 4 . 1 2 4 4 7 . 1 . 5 . . 10 4 9 1 4 5 4 5 . Swap 310 | . 9 2 3 1 21 64 . 2 20 9 7 9 3 6 9 25 4 2 16 1 30 21 7 4 7 24 4 Drop 292 | . 8 . 7 . 27 19 . 7 18 8 10 21 17 6 4 24 3 1 10 9 40 16 12 5 4 16 . Fire 1140 | 16 62 . 13 1 53 115 5 6 53 131 2 55 9 23 40 62 15 13 65 28 3 27 49 35 31 208 20 Melee 249 | . 17 . 8 . 1 40 . . 1 . 28 32 . . . . . . 17 6 63 31 5 . . . . Ram 4 | . . . . . . . . . . . . . . . . . . . 1 . . 3 . . . . . Kick 5 | . . . . . . 3 . . . . 1 . . . . . . . 1 . . . . . . . . Crush 8 | . 1 . . . 1 . . . . . . . . . 4 1 . . 1 . . . . . . . . Escape Stasis 14 | . . . . . . . . . . . . . . . . . . . . . 3 . 11 . . . . Rewire 164 | . . . 20 . . . . 70 . . . 54 . . . . . . . . . . . . . 20 . Trap 8 | . . . . . . . . . . . 1 . . . 4 . . . 3 . . . . . . . . Miscellaneous 3 | . . . . . . . . . . . . . . . 3 . . . . . . . . . . . . Route ------- -11/Scrapyard -10/Materials (discovered 5 exits: *Mat x3 / [*Min] / Sub) -10/Mines (discovered 4 exits: *Mat x2 / *Exi / *Sub) -10/Exiles -9/Mines -8/Materials (discovered 2 exits: *Fac x2) -7/Factory -7/Storage -7/Recycling -5/Factory (discovered 4 exits: *Fac x3 / Ext) -5/Waste -5/Factory -5/Extension (discovered 3 exits: *Fac x2 / *Cet) -5/Cetus (discovered 2 exits: *Fac / *Arc) -5/Archives (discovered 3 exits: *Fac / *Hub x2) -5/Hub_04(d) (discovered 4 exits: *Fac x4) -4/Factory (discovered 3 exits: *Upp x2 / Arm) -4/Upper Caves -4/Upper Caves -4/Warlord -3/Proximity Caves -3/Research (discovered 3 exits: *Res x2 / *Qua) -3/Quarantine (discovered 3 exits: *Res / *Sec / [*Frg]) -3/Section 7 -2/Research -1/Access -1/Command (discovered 3 exits: [*Sur x2] / [*Ac0]) -1/Access_0 Tau Ceti IV Orbit History --------- Turn | Location | Event 37 | -11/Scrapyard | Discovered new exit (range 14) 135 | -11/Scrapyard | Entered Materials 307 | -10/Materials | Build established: Mutant 609 | -10/Materials | Discovered new exit (range 16) 827 | -10/Materials | Discovered new exit (range 3) 835 | -10/Materials | Derelicts attacked the area 1018 | -10/Materials | Core integrity fell below 50% 1277 | -10/Materials | Discovered new exit (range 8) 1673 | -10/Materials | Central database locked down 1747 | -10/Materials | Learned Storage emergency access door positions 1780 | -10/Materials | Discovered new exit (range 16) 1868 | -10/Materials | Learned location of Recycling (-7) 1915 | -10/Materials | Learned Storage emergency access door positions 1951 | -10/Materials | Learned location of Subcaves (-10) 1995 | -10/Materials | Identified exit to Subcaves 2072 | -10/Materials | Entered Mines 2073 | -10/Mines | Identified exit to Materials 2481 | -10/Mines | Learned location of 2 exits from Materials 2486 | -10/Mines | Discovered exit to Subcaves (range 6) 2867 | -10/Mines | Deemed a non-threat by the Exiles lab entrance 2870 | -10/Mines | Discovered new exit (range 5) 2879 | -10/Mines | Entered Exiles 2879 | -10/Exiles | Found Exiles lab destroyed 3154 | -10/Exiles | Opened EX-Vault 3164 | -10/Exiles | Found PSU Rigger 3850 | -10/Exiles | Learned location of Zion (-7) 4125 | -10/Exiles | Build established: Commander-Mutant 4266 | -10/Exiles | Discovered new exit (range 14) 4304 | -10/Exiles | Entered Mines 4304 | -9/Mines | Accompanied by 5 allies 4305 | -9/Mines | Identified exit to Materials 4406 | -9/Mines | Entered Materials 4406 | -8/Materials | Accompanied by 5 allies 4406 | -8/Materials | Evolved 4 slots: Propulsion x2, Utility x1, Weapon x1 4407 | -8/Materials | Identified exit to Factory 4822 | -8/Materials | Build established: Scavenger-Tank 6175 | -8/Materials | Entered Factory 6175 | -7/Factory | Evolved 2 slots: Utility x2 6466 | -7/Factory | Build established: Mutant 7406 | -7/Factory | Discovered new exit (range 11) 7432 | -7/Factory | System corruption reached 10% 7444 | -7/Factory | Core integrity fell below 50% 7482 | -7/Factory | Destroyed 8 combat bots 7495 | -7/Factory | Lost 7 parts (1p2n2u2w) 7601 | -7/Factory | Lost 3 parts (2n1w) 8185 | -7/Factory | Identified exit to Storage 8194 | -7/Factory | Entered Storage 8448 | -7/Storage | Used back door to open Recycling access 8448 | -7/Storage | Discovered new exit (range 5) 8452 | -7/Storage | Build established: Scavenger-Skirmisher 8470 | -7/Storage | Identified exit to Recycling 8472 | -7/Storage | Entered Recycling 8473 | -7/Recycling | Joined Warlord attack on 0b10 via Recycling 8758 | -7/Recycling | Discovered new exit (range 15) 8789 | -7/Recycling | Identified exit to Factory 9920 | -7/Recycling | Build established: Commander-Skirmisher 9921 | -7/Recycling | Learned location of 2 exits from Factory 9957 | -7/Recycling | Identified exit to Scraptown 10004 | -7/Recycling | Learned location of Warlord (-4) 10012 | -7/Recycling | Learned Extension trap positions 10015 | -7/Recycling | Learned 4 Factory zone layouts 10027 | -7/Recycling | Learned Extension trap positions 10051 | -7/Recycling | Learned location of Proximity Caves (-6) 10083 | -7/Recycling | Learned Hub_04(d) trap positions 10289 | -7/Recycling | Scanned before Scraplab entrance 10309 | -7/Recycling | Angered Scraplab inhabitants 11072 | -7/Recycling | Entered Factory 11072 | -5/Factory | Accompanied by 8 allies 11072 | -5/Factory | Evolved 4 slots: Power x1, Propulsion x1, Utility x2 11073 | -5/Factory | Identified exit to Extension 11073 | -5/Factory | Identified exit to Factory 11686 | -5/Factory | Lost 4 parts (2n1u1w) 11792 | -5/Factory | Discovered exit to Factory (range 15) 11897 | -5/Factory | Lost 3 allies 12026 | -5/Factory | Lost 4 parts (1p2n1w) 12201 | -5/Factory | Sucked down chute 12201 | -5/Factory | Entered Waste 12206 | -5/Waste | 1 allies followed down the chute 12264 | -5/Waste | Spotted C-40 Crusher 12294 | -5/Waste | Destroyed C-40 Crusher 12294 | -5/Waste | Spotted C-40 Crusher 12297 | -5/Waste | Spotted C-40 Crusher 12340 | -5/Waste | Destroyed C-40 Crusher 12403 | -5/Waste | Spotted C-40 Crusher 12445 | -5/Waste | Crushed by Compactor (1 part destroyed, 1 dropped) 12507 | -5/Waste | Destroyed C-40 Crusher 12522 | -5/Waste | Spotted C-40 Crusher 12599 | -5/Waste | Spotted C-40 Crusher 12701 | -5/Waste | Destroyed C-40 Crusher 12717 | -5/Waste | Destroyed C-40 Crusher 12747 | -5/Waste | Build established: Mutant 12927 | -5/Waste | Destroyed C-40 Crusher 13092 | -5/Waste | Discovered new exit (range 13) 13105 | -5/Waste | Identified exit to Factory 13230 | -5/Waste | Found Broken Adv. Force Booster 13349 | -5/Waste | Found Damper Plating 13412 | -5/Waste | Entered Factory 13831 | -5/Factory | Discovered exit to Extension (range 9) 13839 | -5/Factory | Entered Extension 13840 | -5/Extension | Loaded intel: 25 trap records 13897 | -5/Extension | Rescued A7 13914 | -5/Extension | Rescued a captive Derelict 13926 | -5/Extension | Rescued a captive Derelict 14026 | -5/Extension | Build established: Hacker-Mutant 14248 | -5/Extension | Rescued a captive Derelict 14287 | -5/Extension | Rescued a captive Derelict 14325 | -5/Extension | Rescued a captive Derelict 14326 | -5/Extension | Rescued a captive Derelict 14538 | -5/Extension | Spotted B-75 Beast 14557 | -5/Extension | Allies destroyed B-75 Beast 14572 | -5/Extension | Spotted B-75 Beast 14591 | -5/Extension | P-70 Sage assimilated allied 4F-BAI(b) 14601 | -5/Extension | Extracted ID and sensor layout for unrecognized location from A7's data core 14608 | -5/Extension | Discovered exit to Factory (range 3) 14630 | -5/Extension | Lost 7 allies 14632 | -5/Extension | Core integrity fell below 50% 14760 | -5/Extension | Lost 7 parts (1p3n1u2w) 14974 | -5/Extension | Rescued a captive Derelict 14983 | -5/Extension | Rescued a captive Derelict 14984 | -5/Extension | Rescued a captive Derelict 14985 | -5/Extension | Rescued a captive Derelict 15032 | -5/Extension | Build established: Scavenger-Mutant 15038 | -5/Extension | Rescued a captive Derelict 15038 | -5/Extension | Rescued a captive Derelict 15285 | -5/Extension | Rescued a captive Derelict 15287 | -5/Extension | Rescued a captive Derelict 15392 | -5/Extension | Discovered exit to Factory (range 10) 15394 | -5/Extension | Discovered new exit (range 6) 15446 | -5/Extension | Entered Cetus 15446 | -5/Cetus | Accompanied by 10 allies 15479 | -5/Cetus | Spotted Cetus Guard 15479 | -5/Cetus | Spotted Cetus Guard 15481 | -5/Cetus | Destroyed Cetus Guard 15482 | -5/Cetus | Spotted Cetus Guard 15487 | -5/Cetus | Allies destroyed Cetus Guard 15487 | -5/Cetus | Spotted Cetus Guard 15489 | -5/Cetus | Allies destroyed Cetus Guard 15490 | -5/Cetus | Destroyed Cetus Guard 15626 | -5/Cetus | Discovered new exit (range 15) 15656 | -5/Cetus | Spotted Cetus Guard 15656 | -5/Cetus | Spotted Cetus Guard 15657 | -5/Cetus | Allies destroyed Cetus Guard 15660 | -5/Cetus | Spotted Cetus Guard 15667 | -5/Cetus | Destroyed Cetus Guard 15667 | -5/Cetus | Spotted Cetus Guard 15671 | -5/Cetus | Allies destroyed Cetus Guard 15673 | -5/Cetus | Allies destroyed Cetus Guard 15692 | -5/Cetus | Discovered exit to Factory (range 15) 15700 | -5/Cetus | Met Revision 17 15820 | -5/Cetus | Build established: Scavenger-Tank 15822 | -5/Cetus | Entered Archives 15822 | -5/Archives | Accompanied by 6 allies 15885 | -5/Archives | Unable to access archive contents 15899 | -5/Archives | Discovered exit to Factory (range 16) 15919 | -5/Archives | Discovered new exit (range 15) 15951 | -5/Archives | Discovered new exit (range 16) 16541 | -5/Archives | Entered Hub_04(d) 16541 | -5/Hub_04(d) | Accompanied by 4 allies 16542 | -5/Hub_04(d) | Loaded intel: 22 trap records 16637 | -5/Hub_04(d) | Adv. Hacking Suite fried by hacking feedback 16919 | -5/Hub_04(d) | Spotted B-75 Beast 16956 | -5/Hub_04(d) | Destroyed B-75 Beast 17099 | -5/Hub_04(d) | Network Hub disabled 17210 | -5/Hub_04(d) | Network Hub disabled 17222 | -5/Hub_04(d) | Spotted Lightning 17225 | -5/Hub_04(d) | Spotted Lightning 17225 | -5/Hub_04(d) | Spotted Lightning 17248 | -5/Hub_04(d) | Spotted Lightning 17250 | -5/Hub_04(d) | Spotted Lightning 17250 | -5/Hub_04(d) | Spotted Lightning 17258 | -5/Hub_04(d) | System corruption reached 10% 17265 | -5/Hub_04(d) | Core integrity fell below 20% 17281 | -5/Hub_04(d) | Entered Factory 17281 | -4/Factory | Evolved 2 slots: Propulsion x1, Utility x1 17305 | -4/Factory | Lost 3 parts (2p1u) 17600 | -4/Factory | Repaired Centrium Heavy Treads 18304 | -4/Factory | Spotted B-86 Titan 18343 | -4/Factory | Destroyed B-86 Titan 18451 | -4/Factory | Discovered new exit (range 19) 18695 | -4/Factory | Identified exit to Upper Caves 18695 | -4/Factory | Identified exit to Armory 18846 | -4/Factory | Entered Upper Caves 18925 | -4/Upper Caves | Spotted B-86 Titan 19012 | -4/Upper Caves | Build established: Scavenger-Skirmisher 19019 | -4/Upper Caves | Attracted the attention of an 0b10 checkpoint 19261 | -4/Upper Caves | Learned 4 Research zone layouts 19448 | -4/Upper Caves | Discovered new exit (range 19) 19488 | -4/Upper Caves | Identified exit to Upper Caves 19489 | -4/Upper Caves | Entered another Upper Caves area 19580 | -4/Upper Caves | Learned Research emergency access door positions 19605 | -4/Upper Caves | Encountered a Warlord checkpoint 19671 | -4/Upper Caves | Learned location of Armory (-4) 20069 | -4/Upper Caves | Attracted the attention of an 0b10 checkpoint 20147 | -4/Upper Caves | Discovered new exit (range 20) 20176 | -4/Upper Caves | Identified exit to Warlord 20179 | -4/Upper Caves | Entered Warlord 20232 | -4/Warlord | Discovered new exit (range 14) 20287 | -4/Warlord | System corruption cleaned by Quarantine Array 20292 | -4/Warlord | Attacked by Warlord forces 20466 | -4/Warlord | Warlord's base attacked by MAIN.C 20651 | -4/Warlord | Spotted O1-4C6(g) 20670 | -4/Warlord | Destroyed O1-4C6(g) 20816 | -4/Warlord | Warlord forces counterattacked 20907 | -4/Warlord | Spotted B-90 Cyclops 20929 | -4/Warlord | Spotted HW-OZM(K) 20932 | -4/Warlord | Spotted E6-WBV(K) 20945 | -4/Warlord | Spotted Executioner 20994 | -4/Warlord | Lost 13 parts (3p3n4u3w) 21028 | -4/Warlord | Core integrity fell below 50% 21031 | -4/Warlord | Destroyed HW-OZM(K) 21105 | -4/Warlord | Lost 6 parts (1p1n2u2w) 21141 | -4/Warlord | Warlord base infiltrated, sounded retreat 21150 | -4/Warlord | Found Quantum Capacitor 21175 | -4/Warlord | Spotted Striker 21243 | -4/Warlord | Spotted B-86 Titan 21320 | -4/Warlord | Entered Proximity Caves 21324 | -3/Proximity Caves | Lost 9 parts (1p2n6u) 21377 | -3/Proximity Caves | Spotted B-86 Titan 21496 | -3/Proximity Caves | Core integrity fell below 20% 21543 | -3/Proximity Caves | Lost 4 parts (2n1u1w) 21725 | -3/Proximity Caves | Build established: Mutant 21884 | -3/Proximity Caves | Discovered new exit (range 7) 21886 | -3/Proximity Caves | Identified exit to Research 21890 | -3/Proximity Caves | Entered Research 21890 | -3/Research | Evolved 2 slots: Propulsion x1, Utility x1 22090 | -3/Research | Revision forces began assault on 0b10 22202 | -3/Research | Repaired Nova Cannon? 22207 | -3/Research | Build established: Derelict-Mutant 22211 | -3/Research | Met up with Revision 17++ 22217 | -3/Research | Discovered new exit (range 14) 22315 | -3/Research | Identified exit to Research 22464 | -3/Research | Found Unknown Launcher 22464 | -3/Research | Identified Gamma Bomb Array 22590 | -3/Research | Research terminal network offline 22766 | -3/Research | Build established: Mutant 22852 | -3/Research | Discovered exit to Research (range 15) 22873 | -3/Research | Found Prototype Processor 22873 | -3/Research | Identified Exp. Target Analyzer 23029 | -3/Research | Spotted Striker 23051 | -3/Research | Spotted Striker 23080 | -3/Research | Discovered new exit (range 16) 23121 | -3/Research | Spotted B-86 Titan 23172 | -3/Research | Identified exit to Quarantine 23172 | -3/Research | Entered Quarantine 23390 | -3/Quarantine | Found Alien Artifact 23482 | -3/Quarantine | Found Alien Artifact 23482 | -3/Quarantine | Identified Core Reset Matrix 23482 | -3/Quarantine | Identified Subatomic Replicator 23482 | -3/Quarantine | Used Core Reset Matrix 23486 | -3/Quarantine | Detected hypermatrix surge 23486 | -3/Quarantine | Sensed 10 artifacts in vicinity 23549 | -3/Quarantine | Met incapacitated Sigix Warrior 23549 | -3/Quarantine | Lockdown squad dispatched 23551 | -3/Quarantine | Acquired the access code to the Sigix quarantine chamber 23552 | -3/Quarantine | Unlocked Sigix quarantine chamber 23553 | -3/Quarantine | Used Subatomic Replicator to replicate Sigix Containment Pod 23556 | -3/Quarantine | Found Sigix Containment Pod 23583 | -3/Quarantine | Found Transdimensional Reconstructor 23586 | -3/Quarantine | Found Dimensional Node Initializer 23589 | -3/Quarantine | Found Hpw. Transdimensional Reconstructor 23610 | -3/Quarantine | Build established: Scavenger-Ninja 23729 | -3/Quarantine | Discovered exit to Research (range 3) 23768 | -3/Quarantine | Found Core Cannon 23812 | -3/Quarantine | Spotted Fortress 23839 | -3/Quarantine | Discovered new exit (range 6) 23839 | -3/Quarantine | Discovered new exit (range 7) 23840 | -3/Quarantine | Identified exit to Section 7 23841 | -3/Quarantine | Entered Section 7 23842 | -3/Section 7 | Detected hypermatrix surge 23842 | -3/Section 7 | Sensed 20 artifacts in vicinity 23852 | -3/Section 7 | Found Integrated Reactor 23852 | -3/Section 7 | Installed Integrated Reactor, increased core energy generation (+10) 23903 | -3/Section 7 | Found Microwarp Drive 23927 | -3/Section 7 | Initialized slip node 23945 | -3/Section 7 | Spotted S7 Guard 23951 | -3/Section 7 | Found Unknown Protection 23951 | -3/Section 7 | Identified Powered Armor 23956 | -3/Section 7 | Spotted B-86 Titan 23963 | -3/Section 7 | Core integrity fell below 50% 24010 | -3/Section 7 | Lost 9 parts (2p4n2u1w) 24036 | -3/Section 7 | Integrated with Sigix Exoskeleton 24040 | -3/Section 7 | Sigix Warrior commented on Exoskeleton integration 24050 | -3/Section 7 | Spotted Executioner 24053 | -3/Section 7 | Spotted Executioner 24070 | -3/Section 7 | Destroyed Executioner 24075 | -3/Section 7 | Destroyed Executioner 24080 | -3/Section 7 | Found Prototype Processor 24080 | -3/Section 7 | Identified Exp. Core Analyzer 24083 | -3/Section 7 | Found Prototype Processor 24083 | -3/Section 7 | Identified Exp. Targeting Computer 24092 | -3/Section 7 | Spotted Striker 24092 | -3/Section 7 | Spotted Striker 24098 | -3/Section 7 | Core integrity fell below 20% 24100 | -3/Section 7 | Destroyed Striker 24120 | -3/Section 7 | Destroyed Striker 24142 | -3/Section 7 | Found Sigix Sheargun 24143 | -3/Section 7 | Found Sigix Sheargun 24145 | -3/Section 7 | Found Sigix Sheargun 24191 | -3/Section 7 | Spotted Executioner 24191 | -3/Section 7 | Spotted Executioner 24245 | -3/Section 7 | Spotted Investigator 24278 | -3/Section 7 | Found Core Regenerator 24278 | -3/Section 7 | Used Core Regenerator, restored core integrity (+325) 24282 | -3/Section 7 | Scanned by Researcher 24283 | -3/Section 7 | Intercept squad dispatched 24289 | -3/Section 7 | Spotted Tracker 24296 | -3/Section 7 | Sigix Exoskeleton integrity reduced to 80% 24297 | -3/Section 7 | Destroyed Investigator 24304 | -3/Section 7 | Spotted Combat Programmer 24311 | -3/Section 7 | Destroyed Combat Programmer 24355 | -3/Section 7 | Build established: Alien-Sigix 24358 | -3/Section 7 | Spotted S7 Guard 24362 | -3/Section 7 | Found Core Membrane 24362 | -3/Section 7 | Installed Core Membrane, gained immunity to corruption 24373 | -3/Section 7 | Discovered exit to Research (range 18) 24386 | -3/Section 7 | Entered Research 24386 | -2/Research | Evolved 2 slots: Weapon x2 24391 | -2/Research | Emitted hypermatrix ping 24396 | -2/Research | Assembled emerged from beneath the floor 24457 | -2/Research | Assembled emerged from beneath the floor 24496 | -2/Research | Found Prototype Device 24496 | -2/Research | Identified Adv. EM Shield 24510 | -2/Research | Assembled emerged from beneath the floor 24622 | -2/Research | Assembled emerged from beneath the floor 24623 | -2/Research | Assembled infested ambush trap array 24636 | -2/Research | First assault squad dispatched 24642 | -2/Research | Assembled emerged from beneath the floor 24699 | -2/Research | Lost 4 allies 24722 | -2/Research | Discovered new exit (range 17) 24748 | -2/Research | Entered Access 24748 | -1/Access | Evolved 2 slots: Utility x2 24753 | -1/Access | Emitted hypermatrix ping 24758 | -1/Access | Assembled emerged from beneath the floor 24779 | -1/Access | Assembled emerged from beneath the floor 24791 | -1/Access | Assembled emerged from beneath the floor 24843 | -1/Access | Discovered new exit (range 16) 24855 | -1/Access | Spotted B-99 Colossus 24865 | -1/Access | Assembled emerged from beneath the floor 24899 | -1/Access | Spotted B-99 Colossus 24987 | -1/Access | Intercept squad dispatched 25022 | -1/Access | Spotted Tracker 25023 | -1/Access | Spotted Tracker 25024 | -1/Access | Destroyed Tracker 25035 | -1/Access | Destroyed Tracker 25106 | -1/Access | Spotted Combat Programmer 25110 | -1/Access | Spotted Combat Programmer 25114 | -1/Access | Entered Command 25119 | -1/Command | Emitted hypermatrix ping 25124 | -1/Command | Assembled emerged from beneath the floor 25226 | -1/Command | Assembled emerged from beneath the floor 25422 | -1/Command | Spotted M Guard 25422 | -1/Command | Spotted M Guard 25423 | -1/Command | Spotted Combat Programmer 25440 | -1/Command | Spotted Combat Programmer 25443 | -1/Command | Destroyed Combat Programmer 25448 | -1/Command | Destroyed Combat Programmer 25460 | -1/Command | High security lockdown imminent 25540 | -1/Command | High security lockdown engaged 25543 | -1/Command | Destroyed M Guard 25548 | -1/Command | Sigix Exoskeleton integrity reduced to 60% 25561 | -1/Command | Destroyed M Guard 25561 | -1/Command | All MAIN.C guards destroyed 25578 | -1/Command | 0b10 Conduit disabled 25579 | -1/Command | Met MAIN.C 25588 | -1/Command | Core integrity fell below 50% 25603 | -1/Command | MAIN.C's shell transforms into a squad of autonomous robots 25603 | -1/Command | Destroyed MAIN.C Shell 25604 | -1/Command | Spotted M Shell/Def 25606 | -1/Command | MAIN.C activated Command garrisons 25624 | -1/Command | Sigix Exoskeleton integrity reduced to 40% 25642 | -1/Command | Assembled emerged from beneath the floor 25696 | -1/Command | Sigix Exoskeleton integrity reduced to 20% 25699 | -1/Command | Core integrity fell below 20% 25699 | -1/Command | Destroyed MAIN.C 25706 | -1/Command | Discovered new exit (range 134) 25706 | -1/Command | Discovered new exit (range 34) 25706 | -1/Command | Extracted map data and part IDs from MAIN.C's data core 25707 | -1/Command | Found Zero-point Reactor 26686 | -1/Command | Assembled emerged from beneath the floor 26789 | -1/Command | Assembled emerged from beneath the floor 26871 | -1/Command | Assembled emerged from beneath the floor 26921 | -1/Command | Assembled emerged from beneath the floor 27184 | -1/Command | Found Exp. Targeting Computer 27186 | -1/Command | Found Exp. Core Analyzer 27210 | -1/Command | Phase Generator disabled 27494 | -1/Command | Found Exp. Weapon Cycler 28000 | -1/Command | Warped through subspace to slip node 28000 | -1/Command | Discovered new exit (range 5) 28007 | -1/Command | Entered Access_0 28008 | -1/Access_0 | Sensed 2 artifacts in vicinity 28010 | -1/Access_0 | Met Architect 28011 | -1/Access_0 | Architect warped through subspace 28021 | -1/Access_0 | Destroyed A8 28047 | -1/Access_0 | Architect warped through subspace 28056 | -1/Access_0 | Found Integrity Redistributor 28056 | -1/Access_0 | Used Integrity Redistributor, redistributed integrity to core (+126) 28078 | -1/Access_0 | A6 warped into view 28181 | -1/Access_0 | Warped through subspace to slip node 28181 | -1/Access_0 | Discovered new exit (range 8) 28194 | *** | Destroyed 0b10! Last Messages --------------- 28143_ Penetrated by Quantum Shear. 28145_ Quantum Shear penetrates Wall. 28156_ Penetrated by Quantum Shear. 28158_ HV Slug penetrates Wall. 28158_ Quantum Shear penetrates Wall. 28159_ HV Slug penetrates Wall. 28176_ Quantum Shear penetrates Wall. 28178_ Penetrated by Quantum Shear. 28178_ Quantum Shear penetrates Wall. 28179_ Quantum Shear penetrates Earth. 28179_ Quantum Shear penetrates Architect. 28181_ Quantum Shear penetrates A2. 28181_ Warped through subspace, drawn to slip node. 28181_ EXIT=FOUND 28183_ A0_RES: I have more important things to do than play hide-and-seek. Deal with this piece of junk if it returns. [Achievement: Winner's Signature] [Achievement: By A Hair] Map ----- +----------------------------------------------------+ | | | | | | | | | | | | | | | | | | | | | | | | | | | | | | | | | ?????????###############################?????????? | | ????????#################################????????? | | ????????##################################???????? | | ????????##################################???????? | | ???????###################################???????? | | ???????####################################??????? | | ???????####################################??????? | | ???????################## #################??????? | | ???????################# ################??????? | | ??????################## X ################??????? | | ???????################# #################?????? | | ??????################# ################??????? | | ??????################# #################??????? | | ??????################## ################??????? | | ??????################# ################??????? | | ??????################# #################??????? | | ??????################# < ################??????? | | ??????################# #################??????? | | ???????################# ################???????? | | ???????###################################???????? | | ???????###################################???????? | | ???????###################################???????? | | ???????###################################???????? | | ????????#################################????????? | | ????????#################################????????? | | ????????#################################????????? | | ?????????###############################?????????? | | ??????????#############################??????????? | | ??????????#############################??????????? | | ???????????###########################???????????? | | ????????????#########################????????????? | | ?????????????#######################?????????????? | | ???????????????###################???????????????? | | ????????????????#################????????????????? | +----------------------------------------------------+ Best States ------------- Heat Dissipation 188 Energy Generation 79 Energy Capacity 590 Matter Stores 300 Matter Capacity 300 Sight Range 23 Robot Scan Range 16 Terrain Scan Range 20 Terrain Scan Density 210 ECM Strength 2 Jamming Range 16 Cloak Strength 3 Power Amplification 30 Base Temperature (-) 200 Corruption Block 15 Armor Coverage 1600 Resistance: KI 50 Resistance: TH 50 Resistance: EX 50 Resistance: EM 90 Resistance: I 50 Resistance: S 50 Resistance: P 50 Weapon Shielding 66 Point Defense Rating 240 Weapon Cycling 30 Phase Shifting 15 Evasion (%) 96 Targeting Accuracy 12 Melee Accuracy 8 Target Analysis 8 Core Analysis 11 Armor Integrity Analysis 30 Recoil Reduction 6 Energy Filtering 30 Salvage Targeting 4 Offensive Hacking 26 Defensive Hacking 11 Item Schematics ----------------- None Robot Schematics ------------------ None Fabricated ------------ Nothing Repaired ---------- Centrium Heavy Treads | 1% | -4/Factory Nova Cannon | 38% | -3/Research Alien Tech Used ----------------- Core Reset Matrix Subatomic Replicator Core Cannon Integrated Reactor Microwarp Drive Dimensional Node Initializer Sigix Exoskeleton Sigix Sheargun Core Regenerator Core Membrane Transdimensional Reconstructor Integrity Redistributor High-powered Transdimensional Reconstructor Achievements -------------- By A Hair Gunslinger Winner's Signature Challenges ------------ None Game ------ Seed GravityTrapDrive Manual? 1 Play Time 06:18:27 Cumulative 262.1 hours Start 2025.05.28 @ 18:09:49 End 2025.05.29 @ 01:06:32 Sessions 1 Manual Loads 0 Difficulty Rogue Special Mode None Game No. 136 Rogue 128 Adventurer 8 Explorer 0 Win Type 3 Total 9 Types 4/0/2/2/0/0/0/0/0/1 Lore% 85 Gallery% 82 Achievement% 69 Wizard Run 0 Options --------- Layout 2 ASCII 0 Keyboard 1 Movement Numpad Keybinds 1 Fullscreen 1 Font 48/Smallcaps Map View 50x44 Zoom Use 0% Tactical HUD 1 Map Filters NONE Filters NONE Steam 1 RUN: d7ee5eec-b24d-456e-ade6-5989c56a0f75